fUST/lending_fUST_20250128
["ID","MTS","AMOUNT","RATE_DAILY","PERIOD"]
[350634553,1738008641108,-500.0,0.00020479,2]
[350634554,1738008641117,-151.0,0.00020479,2]
[350634555,1738008641126,-151.0,0.00020479,2]
[350634556,1738008641135,-151.0,0.00020479,2]
[350634557,1738008641144,-151.0,0.00020479,2]
[350634558,1738008641153,-151.0,0.00020479,2]
[350634559,1738008641162,-3732.86,0.00020479,2]
[350634560,1738008641171,-151.0,0.00020479,2]
[350634561,1738008641180,-222.636102,0.00020479,2]
[350634562,1738008641190,-500.0,0.00020479,2]
[350634563,1738008641200,-13470.46,0.00020479,2]
[350634564,1738008641209,-641.39,0.00020479,2]
[350634565,1738008641218,-500.0,0.00020479,2]
[350634566,1738008641227,-5380.71,0.00020479,2]
[350634567,1738008641236,-500.0,0.00020479,2]
[350634568,1738008641245,-151.0,0.00020479,2]
[350634569,1738008641254,-500.0,0.00020479,2]
[350634570,1738008641264,-207.121136,0.00020479,2]
[350634571,1738008641274,-207.121136,0.00020479,2]
[350634572,1738008641283,-500.0,0.00020479,2]
[350634573,1738008641293,-151.0,0.00020479,2]
[350634574,1738008641302,-500.0,0.00020479,2]
[350634576,1738008641312,-151.0,0.00020479,2]
[350634578,1738008641322,-151.0,0.00020479,2]
[350634580,1738008641331,-151.0,0.00020479,2]
[350634582,1738008641341,-593.94,0.00020479,2]
[350634584,1738008641350,-151.0,0.00020479,2]
[350634586,1738008641359,-151.0,0.00020479,2]
[350634588,1738008641369,-486.539371,0.00020479,2]
[350634589,1738008641379,-251.226712,0.00020479,2]
[350634592,1738008641388,-486.539371,0.00020479,2]
[350634594,1738008641398,-500.0,0.0002048,2]
[350634595,1738008641407,-500.0,0.0002048,2]
[350634597,1738008641417,-500.0,0.0002048,2]
[350634600,1738008641426,-500.0,0.0002048,2]
[350634602,1738008641436,-4673.28,0.000205,2]
[350634604,1738008641446,-4198.6,0.000205,2]
[350634605,1738008641455,-535.3,0.00020547,2]
[350634607,1738008641464,-615.71,0.00020614,2]
[350634609,1738008641474,-500.0,0.00020614,2]
[350634611,1738008641488,-500.0,0.00020614,2]
[350634613,1738008641498,-511.02,0.00020614,2]
[350634615,1738008641507,-500.0,0.00020614,2]
[350634617,1738008641517,-810.37,0.00020615,2]
[350634619,1738008641527,-500.0,0.00020615,2]
[350634621,1738008641537,-559.1,0.00020615,2]
[350634623,1738008641557,-500.0,0.00020615,2]
[350634626,1738008641570,-1364.03,0.00020615,2]
[350634628,1738008641580,-1820.45,0.00020615,2]
[350634630,1738008641591,-1833.77,0.00020615,2]
[350634631,1738008641601,-500.0,0.00020615,2]
[350634632,1738008641611,-500.0,0.00020615,2]
[350634634,1738008641621,-1241.81,0.00020615,2]
[350634635,1738008641632,-500.0,0.00020615,2]
[350634637,1738008641642,-500.0,0.00020615,2]
[350634639,1738008641652,-546.2,0.00020615,2]
[350634641,1738008641662,-860.15,0.00020615,2]
[350634643,1738008641672,-500.0,0.00020615,2]
[350634645,1738008641682,-705.34,0.00020615,2]
[350634647,1738008641692,-500.0,0.00020615,2]
[350634649,1738008641702,-500.0,0.00020615,2]
[350634651,1738008641711,-500.0,0.00020615,2]
[350634653,1738008641720,-357.01940731,0.00020615,2]
[350634655,1738008641730,-1432.09,0.00020615,2]
[350634657,1738008641739,-834.14,0.00020615,2]
[350634659,1738008641749,-2071.85,0.00020615,2]
[350634661,1738008641758,-448.79128508,0.00020616,2]
[350634662,1738008641768,-500.0,0.00020616,2]
[350634663,1738008641777,-500.0,0.00020616,2]
[350634664,1738008641787,-500.0,0.00020616,2]
[350634665,1738008641796,-500.0,0.00020616,2]
[350634666,1738008641806,-500.0,0.00020616,2]
[350634667,1738008641816,-500.0,0.00020616,2]
[350634668,1738008641825,-500.0,0.00020616,2]
[350634669,1738008641835,-500.0,0.00020616,2]
[350634670,1738008641844,-500.0,0.00020616,2]
[350634671,1738008641853,-500.0,0.00020616,2]
[350634672,1738008641863,-500.0,0.00020616,2]
[350634673,1738008641873,-500.0,0.00020616,2]
[350634674,1738008641883,-500.0,0.00020616,2]
[350634675,1738008641892,-151.0,0.00020616,2]
[350634676,1738008641902,-535.34,0.00020616,2]
[350634677,1738008641911,-542.09550463,0.00020616,2]
[350634678,1738008641920,-151.0,0.00020616,2]
[350634679,1738008641930,-151.0,0.00020616,2]
[350634680,1738008641940,-151.0,0.00020616,2]
[350634681,1738008641950,-151.0,0.00020616,2]
[350634682,1738008641959,-3732.86,0.00020616,2]
[350634683,1738008641969,-151.0,0.00020616,2]
[350634684,1738008641979,-151.0,0.00020616,2]
[350634685,1738008641988,-500.0,0.00020616,2]
[350634686,1738008641998,-13470.46,0.00020616,2]
[350634687,1738008642007,-641.39,0.00020616,2]
[350634688,1738008642017,-500.0,0.00020616,2]
[350634689,1738008642026,-5380.71,0.00020616,2]
[350634690,1738008642036,-291.054451,0.00020616,2]
[350634691,1738008642046,-500.0,0.00020616,2]
[350634692,1738008642055,-291.054451,0.00020616,2]
[350634693,1738008642066,-500.0,0.00020616,2]
[350634694,1738008642075,-500.0,0.00020616,2]
[350634695,1738008642085,-179.047232,0.00020616,2]
[350634696,1738008642095,-500.0,0.00020616,2]
[350634697,1738008642104,-151.0,0.00020616,2]
[350634698,1738008642114,-151.0,0.00020616,2]
[350634699,1738008642124,-151.0,0.00020616,2]
[350634700,1738008642134,-593.94,0.00020616,2]
[350634701,1738008642143,-151.0,0.00020616,2]
[350634702,1738008642152,-153.939832,0.00020616,2]
[350634703,1738008642162,-486.539371,0.00020616,2]
[350634704,1738008642171,-486.539371,0.00020616,2]
[350634705,1738008642180,-615.71,0.00020751,2]
[350634706,1738008642190,-500.0,0.00020751,2]
[350634707,1738008642199,-500.0,0.00020751,2]
[350634708,1738008642209,-511.02,0.00020751,2]
[350634709,1738008642218,-500.0,0.00020751,2]
[350634710,1738008642228,-810.37,0.00020752,2]
[350634711,1738008642237,-500.0,0.00020752,2]
[350634712,1738008642247,-559.1,0.00020752,2]
[350634713,1738008642257,-500.0,0.00020752,2]
[350634714,1738008642266,-1364.03,0.00020752,2]
[350634715,1738008642276,-1820.45,0.00020752,2]
[350634716,1738008642285,-1833.77,0.00020752,2]
[350634717,1738008642295,-460.52,0.00020752,2]
[350634718,1738008642304,-500.0,0.00020752,2]
[350634719,1738008642313,-1241.81,0.00020752,2]
[350634720,1738008642323,-599.3,0.00020752,2]
[350634721,1738008642333,-500.0,0.00020752,2]
[350634722,1738008642343,-546.2,0.00020752,2]
[350634723,1738008642353,-860.15,0.00020752,2]
[350634724,1738008642362,-500.0,0.00020752,2]
[350634725,1738008642372,-705.34,0.00020752,2]
[350634726,1738008642382,-500.0,0.00020752,2]
[350634727,1738008642394,-500.0,0.00020752,2]
[350634728,1738008642404,-500.0,0.00020752,2]
[350634729,1738008642414,-1432.09,0.00020752,2]
[350634730,1738008642423,-834.14,0.00020752,2]
[350634731,1738008642432,-2071.85,0.00020752,2]
[350634732,1738008642442,-280.48004825,0.00020753,2]
[350634733,1738008642582,-500.0,0.0001952,2]
[350634734,1738008642592,-219.51995175,0.00020753,2]
[350634735,1738008642602,-669.1842,0.00020753,2]
[350634736,1738008642611,-669.1842,0.00020753,2]
[350634737,1738008642621,-151.0,0.00020753,2]
[350634738,1738008642633,-500.0,0.00020753,2]
[350634739,1738008642642,-500.0,0.00020753,2]
[350634740,1738008642652,-500.0,0.00020753,2]
[350634741,1738008642661,-500.0,0.00020753,2]
[350634742,1738008642670,-500.0,0.00020753,2]
[350634743,1738008642680,-500.0,0.00020753,2]
[350634744,1738008642690,-500.0,0.00020753,2]
[350634745,1738008642700,-500.0,0.00020753,2]
[350634746,1738008642709,-500.0,0.00020753,2]
[350634747,1738008642718,-151.0,0.00020753,2]
[350634748,1738008642817,-151.0,0.00020753,2]
[350634749,1738008642828,-193.75,0.00020753,2]
[350634750,1738008642837,-535.34,0.00020753,2]
[350634751,1738008642847,-3732.86,0.00020753,2]
[350634752,1738008642856,-151.0,0.00020753,2]
[350634753,1738008642865,-500.0,0.00020753,2]
[350634754,1738008642876,-13470.46,0.00020753,2]
[350634755,1738008642885,-641.39,0.00020753,2]
[350634756,1738008642895,-500.0,0.00020753,2]
[350634757,1738008642904,-5380.71,0.00020753,2]
[350634758,1738008642913,-291.054451,0.00020753,2]
[350634759,1738008642923,-440.8300886,0.00020753,2]
[350634760,1738008642932,-291.054451,0.00020753,2]
[350634761,1738008642942,-151.0,0.00020753,2]
[350634762,1738008642952,-500.0,0.00020753,2]
[350634763,1738008642961,-207.121136,0.00020753,2]
[350634764,1738008642971,-207.121136,0.00020753,2]
[350634765,1738008642980,-580.42226172,0.00020753,2]
[350634766,1738008642989,-500.0,0.00020753,2]
[350634767,1738008642999,-593.94,0.00020753,2]
[350634768,1738008643009,-224.49534695,0.00020805,2]
[350634769,1738008643018,-615.71,0.00020888,2]
[350634770,1738008643028,-500.0,0.00020888,2]
[350634771,1738008643037,-500.0,0.00020888,2]
[350634772,1738008643046,-511.02,0.00020888,2]
[350634773,1738008643055,-500.0,0.00020888,2]
[350634774,1738008643065,-810.37,0.00020889,2]
[350634775,1738008643074,-500.0,0.00020889,2]
[350634776,1738008643084,-559.1,0.00020889,2]
[350634777,1738008643093,-299.7,0.00020889,2]
[350634778,1738008643103,-1364.03,0.00020889,2]
[350634779,1738008643112,-1820.45,0.00020889,2]
[350634780,1738008643121,-1833.77,0.00020889,2]
[350634781,1738008643133,-500.0,0.00020889,2]
[350634782,1738008643143,-1241.81,0.00020889,2]
[350634783,1738008643152,-500.0,0.00020889,2]
[350634784,1738008643162,-546.2,0.00020889,2]
[350634785,1738008643172,-860.15,0.00020889,2]
[350634786,1738008643181,-705.34,0.00020889,2]
[350634787,1738008643190,-500.0,0.00020889,2]
[350634788,1738008643200,-500.0,0.00020889,2]
[350634789,1738008643209,-500.0,0.00020889,2]
[350634790,1738008643218,-1432.09,0.00020889,2]
[350634791,1738008643227,-834.14,0.00020889,2]
[350634792,1738008643236,-2071.85,0.00020889,2]
[350634793,1738008643245,-500.0,0.0002089,2]
[350634794,1738008643255,-500.0,0.0002089,2]
[350634795,1738008643264,-500.0,0.0002089,2]
[350634796,1738008643274,-500.0,0.0002089,2]
[350634797,1738008643283,-500.0,0.0002089,2]
[350634798,1738008643292,-500.0,0.0002089,2]
[350634799,1738008643302,-500.0,0.0002089,2]
[350634800,1738008643311,-500.0,0.0002089,2]
[350634801,1738008643320,-326.37027071,0.0002089,2]
[350634802,1738008643329,-151.0,0.0002089,2]
[350634803,1738008643338,-535.34,0.0002089,2]
[350634804,1738008643348,-151.0,0.0002089,2]
[350634805,1738008643358,-151.0,0.0002089,2]
[350634806,1738008643367,-151.0,0.0002089,2]
[350634807,1738008643376,-151.0,0.0002089,2]
[350634808,1738008643386,-3732.86,0.0002089,2]
[350634809,1738008643395,-151.0,0.0002089,2]
[350634810,1738008643404,-500.0,0.0002089,2]
[350634811,1738008643414,-13470.46,0.0002089,2]
[350634812,1738008643424,-641.39,0.0002089,2]
[350634813,1738008643433,-500.0,0.0002089,2]
[350634814,1738008643443,-5380.71,0.0002089,2]
[350634815,1738008643452,-500.0,0.0002089,2]
[350634816,1738008643461,-500.0,0.0002089,2]
[350634817,1738008643471,-151.0,0.0002089,2]
[350634818,1738008643483,-151.0,0.0002089,2]
[350634819,1738008643493,-593.94,0.0002089,2]
[350634820,1738008643503,-151.0,0.0002089,2]
[350634821,1738008643514,-486.539371,0.0002089,2]
[350634822,1738008643523,-486.539371,0.0002089,2]
[350634823,1738008643532,-1055.65965879,0.000209,2]
[350634824,1738008643541,-1055.65965872,0.00020969,2]
[350634825,1738008643550,-150.0,0.00021,2]
[350634826,1738008643559,-615.71,0.00021025,2]
[350634827,1738008643570,-500.0,0.00021025,2]
[350634828,1738008643579,-500.0,0.00021025,2]
[350634829,1738008643588,-511.02,0.00021025,2]
[350634830,1738008643597,-500.0,0.00021025,2]
[350634831,1738008643606,-151.0,0.00021025,2]
[350634832,1738008643616,-207.121136,0.00021025,2]
[350634834,1738008643625,-207.121136,0.00021025,2]
[350634836,1738008643634,-810.37,0.00021026,2]
[350634838,1738008643643,-500.0,0.00021026,2]
[350634840,1738008643652,-559.1,0.00021026,2]
[350634842,1738008643661,-1364.03,0.00021026,2]
[350634844,1738008643670,-1820.45,0.00021026,2]
[350634846,1738008643679,-849.17078997,0.00021026,2]
[350634860,1738008643807,-227.87645912,0.00019655,2]
[350634862,1738008643816,-500.0,0.00019657,2]
[350634864,1738008643825,-225.35394419,0.00019794,2]
[350634866,1738008643834,-984.59921003,0.00021026,2]
[350634868,1738008643843,-1241.81,0.00021026,2]
[350634870,1738008643852,-500.0,0.00021026,2]
[350634872,1738008643861,-546.2,0.00021026,2]
[350634874,1738008643870,-860.15,0.00021026,2]
[350634876,1738008643879,-705.34,0.00021026,2]
[350634878,1738008643889,-500.0,0.00021026,2]
[350634880,1738008643898,-186.25213686,0.00021026,2]
[350634882,1738008643908,-500.0,0.00021026,2]
[350634884,1738008643918,-1267.1182498,0.00021026,2]
[350634887,1738008643929,-164.9717502,0.00021026,2]
[350634888,1738008643938,-834.14,0.00021026,2]
[350634890,1738008643947,-2071.85,0.00021026,2]
[350634892,1738008643957,-194.72820633,0.00021027,2]
[350634894,1738008643966,-669.1842,0.00021027,2]
[350634896,1738008643976,-669.1842,0.00021027,2]
[350634898,1738008643986,-200.683109,0.00021027,2]
[350634900,1738008643995,-552.36613795,0.00021027,2]
[350634902,1738008644005,-527.38734681,0.00021027,2]
[350634903,1738008644014,-596.0,0.00021027,2]
[350634904,1738008644023,-500.0,0.00021027,2]
[350634905,1738008644031,-151.0,0.00021027,2]
[350634906,1738008644040,-151.0,0.00021027,2]
[350634907,1738008644049,-535.34,0.00021027,2]
[350634908,1738008644058,-3732.86,0.00021027,2]
[350634909,1738008644067,-151.0,0.00021027,2]
[350634910,1738008644076,-1723.66036428,0.00021027,2]
[350634911,1738008644091,-11746.79963572,0.00021027,2]
[350634912,1738008644100,-641.39,0.00021027,2]
[350634913,1738008644110,-500.0,0.00021027,2]
[350634914,1738008644119,-5380.71,0.00021027,2]
[350634915,1738008644130,-291.054451,0.00021027,2]
[350634916,1738008644140,-291.054451,0.00021027,2]
[350634917,1738008644149,-500.0,0.00021027,2]
[350634918,1738008644158,-176.42873063,0.00021027,2]
[350634919,1738008644170,-299.66689558,0.00021027,2]
[350634920,1738008644181,-23.90437379,0.00021027,2]
[350634921,1738008644191,-593.94,0.00021027,2]
[350634922,1738008644201,-1055.65965872,0.00021038,2]
[350634923,1738008644210,-3000.0,0.00021064,2]
[350634924,1738008644218,-1055.65965872,0.00021107,2]
[350634925,1738008644228,-151.0,0.00021107,2]
[350634926,1738008644237,-151.0,0.00021107,2]
[350634927,1738008644245,-151.0,0.00021107,2]
[350634928,1738008644254,-151.0,0.00021107,2]
[350634929,1738008644264,-151.0,0.00021107,2]
[350634930,1738008644272,-615.71,0.00021162,2]
[350634931,1738008644282,-500.0,0.00021162,2]
[350634932,1738008644291,-500.0,0.00021162,2]
[350634933,1738008644301,-511.02,0.00021162,2]
[350634934,1738008644310,-500.0,0.00021162,2]
[350634935,1738008644320,-810.37,0.00021163,2]
[350634936,1738008644329,-500.0,0.00021163,2]
[350634937,1738008644338,-559.1,0.00021163,2]
[350634938,1738008644348,-1364.03,0.00021163,2]
[350634939,1738008644357,-1820.45,0.00021163,2]
[350634940,1738008644366,-829.75172984,0.00021163,2]
[350634941,1738008644378,-1004.01827016,0.00021163,2]
[350634942,1738008644387,-934.31097394,0.00021163,2]
[350634943,1738008644399,-307.49902606,0.00021163,2]
[350634944,1738008644408,-500.0,0.00021163,2]
[350634945,1738008644417,-546.2,0.00021163,2]
[350634946,1738008644426,-860.15,0.00021163,2]
[350634948,1738008644436,-705.34,0.00021163,2]
[350634950,1738008644445,-500.0,0.00021163,2]
[350634952,1738008644455,-21.71176013,0.00021163,2]
[350634953,1738008644467,-478.28823987,0.00021163,2]
[350634954,1738008644475,-1432.09,0.00021163,2]
[350634955,1738008644485,-834.14,0.00021163,2]
[350634956,1738008644497,-2071.85,0.00021163,2]
[350634957,1738008644505,-535.34,0.00021164,2]
[350634958,1738008644515,-2326.39744042,0.00021164,2]
[350634959,1738008644526,-943.2152442,0.00021164,2]
[350634960,1738008644537,-463.24731538,0.00021164,2]
[350634961,1738008644545,-1605.41924519,0.00021164,2]
[350634962,1738008644556,-970.77960543,0.00021164,2]
[350634963,1738008644568,-600.38008851,0.00021164,2]
[350636659,1738009540134,-450.0,0.00017342,2]
[350636665,1738009632143,-3343.92958036,0.00016997,2]
[350636667,1738009654104,-1656.07041964,0.00016997,2]
[350636668,1738009654126,-1493.74102643,0.00017169,2]
[350636675,1738009745142,-1149.58653453,0.00016997,2]
[350636676,1738009759150,-1375.07742565,0.00016997,2]
[350636677,1738009760172,-110.23374443,0.00016997,2]
[350636678,1738009760194,-591.62826146,0.00017169,2]
[350636679,1738009760215,-2667.070466,0.00017692,2]
[350636680,1738009760235,-1069.0753712,0.0001842,2]
[350636681,1738009760254,-179.59627756,0.00018452,2]
[350636682,1738009760274,-300.0,0.0001855,2]
[350636683,1738009760293,-500.0,0.00018551,2]
[350636684,1738009760316,-500.0,0.00018551,2]
[350636685,1738009760338,-500.0,0.00018551,2]
[350636686,1738009760362,-682.8,0.00018551,2]
[350636687,1738009760383,-500.0,0.00018551,2]
[350636688,1738009760406,-954.25,0.00018551,2]
[350636689,1738009760428,-500.0,0.00018551,2]
[350636690,1738009760451,-834.38,0.00018551,2]
[350636691,1738009760472,-500.0,0.00018551,2]
[350636692,1738009760493,-500.0,0.00018551,2]
[350636693,1738009760513,-500.0,0.00018551,2]
[350636694,1738009760535,-500.0,0.00018551,2]
[350636695,1738009760557,-625.18,0.00018551,2]
[350636696,1738009760578,-840.48,0.00018551,2]
[350636697,1738009760599,-500.0,0.00018551,2]
[350636698,1738009760623,-500.0,0.00018551,2]
[350636699,1738009760645,-500.0,0.00018551,2]
[350636700,1738009760666,-500.0,0.00018551,2]
[350636701,1738009760687,-500.0,0.00018551,2]
[350636702,1738009760708,-529.60561039,0.00018551,2]
[350636703,1738009760730,-608.96,0.00018551,2]
[350636704,1738009760753,-500.0,0.00018551,2]
[350636705,1738009760774,-500.0,0.00018551,2]
[350636706,1738009760796,-500.0,0.00018551,2]
[350636707,1738009760819,-500.0,0.00018551,2]
[350636708,1738009760841,-500.0,0.00018551,2]
[350636709,1738009760865,-500.0,0.00018551,2]
[350636710,1738009760886,-500.0,0.00018551,2]
[350636711,1738009760908,-500.0,0.00018551,2]
[350636712,1738009760931,-500.0,0.00018551,2]
[350636713,1738009760952,-500.0,0.00018552,2]
[350636714,1738009760973,-500.0,0.00018552,2]
[350636715,1738009760992,-500.0,0.00018552,2]
[350636716,1738009761013,-500.0,0.00018552,2]
[350636717,1738009761034,-500.0,0.00018552,2]
[350636718,1738009761054,-500.0,0.00018552,2]
[350636719,1738009761075,-500.0,0.00018552,2]
[350636720,1738009761095,-500.0,0.00018552,2]
[350636721,1738009761117,-500.0,0.00018552,2]
[350636722,1738009761138,-500.0,0.00018552,2]
[350636723,1738009761158,-500.0,0.00018552,2]
[350636724,1738009761179,-500.0,0.00018552,2]
[350636725,1738009761200,-500.0,0.00018552,2]
[350636726,1738009761220,-500.0,0.00018552,2]
[350636727,1738009761240,-500.0,0.00018552,2]
[350636728,1738009761261,-500.0,0.00018552,2]
[350636729,1738009761281,-500.0,0.00018552,2]
[350636730,1738009761301,-500.0,0.00018552,2]
[350636731,1738009761322,-500.0,0.00018552,2]
[350636732,1738009761343,-500.0,0.00018552,2]
[350636733,1738009761366,-500.0,0.00018552,2]
[350636734,1738009761386,-500.0,0.00018552,2]
[350636735,1738009761407,-500.0,0.00018552,2]
[350636736,1738009761428,-500.0,0.00018552,2]
[350636737,1738009761448,-501.91863737,0.00018552,2]
[350636738,1738009761469,-369.93841433,0.00018552,2]
[350636739,1738009761490,-500.0,0.00018552,2]
[350636740,1738009761511,-500.0,0.00018552,2]
[350636741,1738009761533,-500.0,0.00018552,2]
[350636742,1738009761555,-438.55021893,0.00018552,2]
[350636743,1738009761579,-1710.89,0.00018552,2]
[350636744,1738009761601,-500.11,0.00018552,2]
[350636745,1738009761625,-500.0,0.00018552,2]
[350636746,1738009761647,-500.0,0.00018552,2]
[350636747,1738009761668,-500.0,0.00018552,2]
[350636748,1738009761689,-500.0,0.00018552,2]
[350636749,1738009761711,-500.0,0.00018552,2]
[350636750,1738009761732,-500.0,0.00018552,2]
[350636751,1738009761754,-214.32983882,0.00018552,2]
[350636752,1738009761776,-500.0,0.00018552,2]
[350636753,1738009761797,-500.58115671,0.00018552,2]
[350636754,1738009761820,-7321.65,0.00018552,2]
[350636755,1738009761842,-500.0,0.00018552,2]
[350636756,1738009761874,-2690.36,0.00018552,2]
[350636757,1738009761896,-254.18225521,0.00018552,2]
[350636758,1738009761916,-550.0,0.00018552,2]
[350636759,1738009761942,-500.0,0.00018552,2]
[350636760,1738009761963,-500.0,0.00018552,2]
[350636761,1738009761984,-500.0,0.00018552,2]
[350636762,1738009762004,-500.0,0.00018552,2]
[350636763,1738009762027,-582.07902905,0.00018552,2]
[350636764,1738009762049,-500.0,0.00018552,2]
[350636765,1738009762069,-500.0,0.00018552,2]
[350636766,1738009762090,-500.0,0.00018552,2]
[350636767,1738009762112,-509.92240766,0.00018552,2]
[350636768,1738009762135,-500.0,0.00018552,2]
[350636769,1738009762157,-379.17032955,0.00018552,2]
[350636770,1738009762178,-500.0,0.00018552,2]
[350636771,1738009762200,-500.0,0.00018552,2]
[350636772,1738009762222,-24900.0,0.00018553,2]
[350636773,1738009762242,-213.386,0.00018651,2]
[350636774,1738009762267,-500.0,0.00018687,2]
[350636775,1738009762287,-500.0,0.00018687,2]
[350636776,1738009762309,-500.0,0.00018687,2]
[350636777,1738009762329,-200.0,0.00018687,2]
[350636778,1738009762349,-500.0,0.00018687,2]
[350636779,1738009762381,-500.0,0.00018687,2]
[350636780,1738009762403,-500.0,0.00018687,2]
[350636781,1738009762425,-506.57491372,0.00018687,2]
[350636782,1738009762445,-615.86757822,0.00018687,2]
[350636783,1738009762470,-500.0,0.00018687,2]
[350636784,1738009762496,-500.0,0.00018687,2]
[350636785,1738009762519,-167.39721263,0.00018687,2]
[350636786,1738009762545,-245.82669725,0.00018687,2]
[350636787,1738009762566,-500.0,0.00018688,2]
[350636788,1738009762591,-500.0,0.00018688,2]
[350636789,1738009762623,-682.8,0.00018688,2]
[350636790,1738009762647,-954.25,0.00018688,2]
[350636791,1738009762669,-500.0,0.00018688,2]
[350636792,1738009762693,-834.38,0.00018688,2]
[350636793,1738009762714,-258.83067593,0.00018688,2]
[350636794,1738009762736,-500.0,0.00018688,2]
[350636795,1738009762758,-625.18,0.00018688,2]
[350636796,1738009762780,-840.48,0.00018688,2]
[350636797,1738009762803,-608.96,0.00018688,2]
[350636798,1738009762824,-500.0,0.00018688,2]
[350636799,1738009762849,-500.0,0.00018688,2]
[350636800,1738009762994,-500.0,0.00018688,2]
[350636801,1738009763018,-500.0,0.00018688,2]
[350636802,1738009763040,-500.0,0.00018688,2]
[350636803,1738009763061,-500.0,0.00018688,2]
[350636804,1738009763083,-500.0,0.00018689,2]
[350636805,1738009763106,-1710.89,0.00018689,2]
[350636806,1738009763130,-7321.65,0.00018689,2]
[350636807,1738009763154,-500.0,0.00018689,2]
[350636808,1738009763176,-2690.36,0.00018689,2]
[350636809,1738009763197,-296.59952211,0.00018689,2]
[350636810,1738009763217,-500.0,0.00018689,2]
[350636811,1738009763238,-500.0,0.00018689,2]
[350636812,1738009763258,-500.0,0.00018689,2]
[350636813,1738009763277,-189.15210494,0.00018725,2]
[350636814,1738009763298,-500.0,0.00018825,2]
[350636815,1738009763319,-682.8,0.00018825,2]
[350636816,1738009763341,-954.25,0.00018825,2]
[350636817,1738009763366,-500.0,0.00018825,2]
[350636818,1738009763389,-834.38,0.00018825,2]
[350636819,1738009763411,-500.0,0.00018825,2]
[350636820,1738009763432,-625.18,0.00018825,2]
[350636821,1738009763454,-840.48,0.00018825,2]
[350636822,1738009763476,-608.96,0.00018825,2]
[350636823,1738009763498,-500.0,0.00018825,2]
[350636824,1738009763520,-500.0,0.00018825,2]
[350636825,1738009763542,-500.0,0.00018825,2]
[350636826,1738009763564,-500.0,0.00018825,2]
[350636827,1738009763585,-590.97,0.00018825,2]
[350636828,1738009763606,-500.0,0.00018825,2]
[350636829,1738009763628,-500.0,0.00018826,2]
[350636830,1738009763650,-1710.89,0.00018826,2]
[350636831,1738009763673,-7321.65,0.00018826,2]
[350636832,1738009763693,-500.0,0.00018826,2]
[350636833,1738009763716,-1115.4160008,0.00018826,2]
[350636851,1738009831979,-267.0,0.0001855,2]
[350636852,1738009831989,-500.0,0.00018551,2]
[350636853,1738009831998,-1497.03,0.00018551,2]
[350636854,1738009832008,-597.45,0.00018551,2]
[350636855,1738009832017,-6406.44,0.00018551,2]
[350636856,1738009832026,-500.0,0.00018551,2]
[350636857,1738009832037,-834.97,0.00018551,2]
[350636858,1738009832046,-560.24,0.00018552,2]
[350636859,1738009832056,-500.0,0.00018552,2]
[350636860,1738009832066,-500.0,0.00018688,2]
[350636861,1738009832075,-1497.03,0.00018688,2]
[350636862,1738009832085,-597.45,0.00018688,2]